[Event "Titled Tuesday Blitz April 4 Late 2023"]
[White "Matute Escobar, Roxanny"]
[Black "Yanayt, Eugene"]
[WhiteFideId "3926028"]
[BlackFideId "2020165"]
[WhiteElo "1844"]
[BlackElo "2083"]
[Result "0-1"]
[Round "05"]
[TimeControl "180+2"]
[Date "2023.04.04"]
[WhiteClock "0:00:01"]
[BlackClock "0:00:03"]

1. e4 {[%clk 0:02:59]}  c5 {[%clk 0:02:46]} 2. Nf3 {[%clk 0:02:45]}  d6 {[%clk 0:02:44]} 3. d4 {[%clk 0:02:44]}  cxd4 {[%clk 0:02:45]} 4. Nxd4 {[%clk 0:01:48]}  Nf6 {[%clk 0:02:44]} 5. Nc3 {[%clk 0:01:39]}  a6 {[%clk 0:02:43]} 6. Be3 {[%clk 0:01:35]}  e5 {[%clk 0:02:42]} 7. Nb3 {[%clk 0:01:35]}  Be6 {[%clk 0:02:41]} 8. f3 {[%clk 0:01:35]}  Be7 {[%clk 0:02:40]} 9. Qd2 {[%clk 0:01:35]}  O-O {[%clk 0:02:40]} 10. O-O-O {[%clk 0:01:36]}  a5 {[%clk 0:02:40]} 11. Kb1 {[%clk 0:01:34]}  a4 {[%clk 0:02:40]} 12. Nc1 {[%clk 0:01:34]}  a3 {[%clk 0:02:40]} 13. b3 {[%clk 0:01:33]}  Nbd7 {[%clk 0:02:32]} 14. g4 {[%clk 0:01:33]}  Nb6 {[%clk 0:02:30]} 15. h4 {[%clk 0:01:30]}  Qc7 {[%clk 0:02:16]} 16. h5 {[%clk 0:01:29]}  Rfc8 {[%clk 0:02:16]} 17. Nb5 {[%clk 0:01:23]}  Qc6 {[%clk 0:02:09]} 18. g5 {[%clk 0:01:21]}  Nfd7 {[%clk 0:02:05]} 19. Rh2 {[%clk 0:01:17]}  d5 {[%clk 0:02:02]} 20. g6 {[%clk 0:01:12]}  Nc4 {[%clk 0:01:48]} 21. Bxc4 {[%clk 0:01:06]}  dxc4 {[%clk 0:01:48]} 22. gxf7+ {[%clk 0:01:06]}  Kh8 {[%clk 0:01:37]} 23. Nd6 {[%clk 0:01:06]}  cxb3 {[%clk 0:01:27]} 24. cxb3 {[%clk 0:01:06]}  Rf8 {[%clk 0:00:47]} 25. Nf5 {[%clk 0:01:00]}  Bxf5 {[%clk 0:00:40]} 26. exf5 {[%clk 0:01:01]}  Nb6 {[%clk 0:00:31]} 27. h6 {[%clk 0:01:00]}  g6 {[%clk 0:00:26]} 28. fxg6 {[%clk 0:00:59]}  Qxg6+ {[%clk 0:00:26]} 29. Ka1 {[%clk 0:00:59]}  Bf6 {[%clk 0:00:26]} 30. Rg1 {[%clk 0:00:51]}  Qxf7 {[%clk 0:00:25]} 31. Bxb6 {[%clk 0:00:50]}  e4+ {[%clk 0:00:23]} 32. Bd4 {[%clk 0:00:50]}  Rad8 {[%clk 0:00:24]} 33. Ne2 {[%clk 0:00:40]}  exf3 {[%clk 0:00:23]} 34. Rg7 {[%clk 0:00:20]}  Bxd4+ {[%clk 0:00:08]} 35. Nxd4 {[%clk 0:00:19]}  Qf6 {[%clk 0:00:07]} 36. Rg4 {[%clk 0:00:14]}  f2 {[%clk 0:00:07]} 37. Rxf2 {[%clk 0:00:09]}  Qxf2 {[%clk 0:00:07]} 38. Qxf2 {[%clk 0:00:09]}  Rxf2 {[%clk 0:00:07]} 39. Kb1 {[%clk 0:00:03]}  Rc8 {[%clk 0:00:07]} 40. Rg1 {[%clk 0:00:01]}  Rb2+ {[%clk 0:00:06]} 41. Ka1 {[%clk 0:00:01]}  Rd2 {[%clk 0:00:04]} 42. Nf3 {[%clk 0:00:01]}  Rf2 {[%clk 0:00:03]} 43. Rf1 {[%clk 0:00:02]}  Rxf1+ {[%clk 0:00:03]} 44. Ne1 {[%clk 0:00:01]}  Rxe1# {[%clk 0:00:03]} 0-1


[Site "https://www.chess.com"]

[Event "Titled Tuesday Blitz April 4 Late 2023"]
[White "Kollars, Dmitrij"]
[Black "Erigaisi Arjun"]
[WhiteFideId "12909572"]
[BlackFideId "35009192"]
[WhiteElo "2584"]
[BlackElo "2737"]
[Result "0-1"]
[Round "06"]
[TimeControl "180+2"]
[Date "2023.04.04"]
[WhiteClock "0:00:01"]
[BlackClock "0:00:05"]

1. e4 {[%clk 0:02:45]}  d6 {[%clk 0:02:59]} 2. d4 {[%clk 0:02:43]}  g6 {[%clk 0:02:59]} 3. Nc3 {[%clk 0:02:39]}  Bg7 {[%clk 0:02:59]} 4. Be3 {[%clk 0:02:40]}  a6 {[%clk 0:02:59]} 5. h4 {[%clk 0:02:40]}  Nf6 {[%clk 0:02:57]} 6. h5 {[%clk 0:02:37]}  Nxh5 {[%clk 0:02:56]} 7. Rxh5 {[%clk 0:02:37]}  gxh5 {[%clk 0:02:57]} 8. Qxh5 {[%clk 0:02:38]}  e6 {[%clk 0:02:56]} 9. Nf3 {[%clk 0:02:36]}  b5 {[%clk 0:02:49]} 10. O-O-O {[%clk 0:02:35]}  Nd7 {[%clk 0:02:46]} 11. e5 {[%clk 0:02:15]}  Bb7 {[%clk 0:02:27]} 12. d5 {[%clk 0:01:59]}  Nxe5 {[%clk 0:02:24]} 13. dxe6 {[%clk 0:01:49]}  Qe7 {[%clk 0:02:20]} 14. Nd4 {[%clk 0:01:24]}  O-O {[%clk 0:02:12]} 15. f4 {[%clk 0:01:19]}  fxe6 {[%clk 0:02:04]} 16. fxe5 {[%clk 0:01:18]}  Bxe5 {[%clk 0:02:05]} 17. Bd3 {[%clk 0:01:15]}  Rf7 {[%clk 0:02:01]} 18. Ne4 {[%clk 0:01:11]}  c5 {[%clk 0:01:48]} 19. Nf3 {[%clk 0:00:59]}  Rf5 {[%clk 0:01:27]} 20. Qg4+ {[%clk 0:00:42]}  Qg7 {[%clk 0:01:22]} 21. Nxe5 {[%clk 0:00:38]}  Rxe5 {[%clk 0:01:23]} 22. Nf6+ {[%clk 0:00:27]}  Kf7 {[%clk 0:01:11]} 23. Bf4 {[%clk 0:00:14]}  Qxf6 {[%clk 0:00:47]} 24. Bxe5 {[%clk 0:00:14]}  Qxe5 {[%clk 0:00:48]} 25. Rf1+ {[%clk 0:00:14]}  Ke8 {[%clk 0:00:49]} 26. Qg8+ {[%clk 0:00:10]}  Kd7 {[%clk 0:00:49]} 27. Qxh7+ {[%clk 0:00:08]}  Kc6 {[%clk 0:00:48]} 28. Be4+ {[%clk 0:00:03]}  d5 {[%clk 0:00:48]} 29. Bg6 {[%clk 0:00:04]}  Rh8 {[%clk 0:00:27]} 30. Qe7 {[%clk 0:00:03]}  Qd6 {[%clk 0:00:20]} 31. Be8+ {[%clk 0:00:02]}  Rxe8 {[%clk 0:00:20]} 32. Qxe8+ {[%clk 0:00:03]}  Kb6 {[%clk 0:00:21]} 33. Qf7 {[%clk 0:00:02]}  d4 {[%clk 0:00:20]} 34. g4 {[%clk 0:00:02]}  Bg2 {[%clk 0:00:19]} 35. Qf4 {[%clk 0:00:02]}  Qd8 {[%clk 0:00:13]} 36. Rg1 {[%clk 0:00:01]}  Bd5 {[%clk 0:00:11]} 37. g5 {[%clk 0:00:02]}  c4 {[%clk 0:00:08]} 38. g6 {[%clk 0:00:02]}  e5 {[%clk 0:00:08]} 39. Qxe5 {[%clk 0:00:02]}  Bg8 {[%clk 0:00:09]} 40. Qf5 {[%clk 0:00:02]}  c3 {[%clk 0:00:08]} 41. Qf2 {[%clk 0:00:02]}  Ka5 {[%clk 0:00:06]} 42. a3 {[%clk 0:00:02]}  Qd5 {[%clk 0:00:06]} 43. Qf6 {[%clk 0:00:01]}  cxb2+ {[%clk 0:00:06]} 44. Kd2 {[%clk 0:00:01]}  Qc5 {[%clk 0:00:05]} 45. Qd8+ {[%clk 0:00:01]}  Ka4 {[%clk 0:00:05]} 0-1


[Site "https://www.chess.com"]

[Event "Titled Tuesday Blitz April 4 Late 2023"]
[White "Sadhwani, Raunak"]
[Black "Indjic, Aleksandar"]
[WhiteFideId "35093487"]
[BlackFideId "911925"]
[WhiteElo "2631"]
[BlackElo "2614"]
[Result "0-1"]
[Round "06"]
[TimeControl "180+2"]
[Date "2023.04.04"]
[WhiteClock "0:00:05"]
[BlackClock "0:00:20"]

1. e4 {[%clk 0:03:00]}  c5 {[%clk 0:03:00]} 2. Nf3 {[%clk 0:03:00]}  d6 {[%clk 0:03:01]} 3. Bb5+ {[%clk 0:03:01]}  Nd7 {[%clk 0:03:00]} 4. O-O {[%clk 0:03:01]}  a6 {[%clk 0:03:01]} 5. Be2 {[%clk 0:03:01]}  Ngf6 {[%clk 0:03:00]} 6. d3 {[%clk 0:03:02]}  e6 {[%clk 0:02:56]} 7. Ng5 {[%clk 0:03:02]}  h6 {[%clk 0:02:55]} 8. Nh3 {[%clk 0:03:02]}  b5 {[%clk 0:02:55]} 9. f4 {[%clk 0:03:02]}  Bb7 {[%clk 0:02:55]} 10. Qe1 {[%clk 0:02:59]}  Be7 {[%clk 0:02:54]} 11. Nd2 {[%clk 0:02:57]}  Qc7 {[%clk 0:02:54]} 12. Nf3 {[%clk 0:02:55]}  Bc6 {[%clk 0:02:47]} 13. b3 {[%clk 0:02:53]}  a5 {[%clk 0:02:34]} 14. Bb2 {[%clk 0:02:53]}  a4 {[%clk 0:02:34]} 15. Nf2 {[%clk 0:02:52]}  a3 {[%clk 0:02:34]} 16. Bc3 {[%clk 0:02:52]}  b4 {[%clk 0:02:33]} 17. Bd2 {[%clk 0:02:52]}  Rg8 {[%clk 0:02:24]} 18. Rc1 {[%clk 0:02:44]}  Qb7 {[%clk 0:02:22]} 19. Nh3 {[%clk 0:02:28]}  Nh7 {[%clk 0:01:52]} 20. Qf2 {[%clk 0:02:16]}  O-O-O {[%clk 0:01:45]} 21. f5 {[%clk 0:02:11]}  Nhf6 {[%clk 0:01:40]} 22. fxe6 {[%clk 0:02:10]}  fxe6 {[%clk 0:01:40]} 23. Nf4 {[%clk 0:02:11]}  Nf8 {[%clk 0:01:40]} 24. e5 {[%clk 0:01:27]}  N6d7 {[%clk 0:01:38]} 25. exd6 {[%clk 0:01:01]}  Bxd6 {[%clk 0:01:39]} 26. c3 {[%clk 0:00:59]}  g5 {[%clk 0:01:39]} 27. Nh5 {[%clk 0:00:59]}  bxc3 {[%clk 0:01:30]} 28. Rxc3 {[%clk 0:01:00]}  Ng6 {[%clk 0:01:29]} 29. h3 {[%clk 0:00:44]}  Rdf8 {[%clk 0:01:28]} 30. d4 {[%clk 0:00:39]}  Nh4 {[%clk 0:01:08]} 31. dxc5 {[%clk 0:00:29]}  Bc7 {[%clk 0:01:08]} 32. b4 {[%clk 0:00:24]}  Qxb4 {[%clk 0:00:47]} 33. Qe3 {[%clk 0:00:19]}  Qe4 {[%clk 0:00:37]} 34. Qxe4 {[%clk 0:00:12]}  Bxe4 {[%clk 0:00:38]} 35. Nd4 {[%clk 0:00:10]}  Be5 {[%clk 0:00:34]} 36. Be3 {[%clk 0:00:05]}  Nxg2 {[%clk 0:00:33]} 37. Ba6+ {[%clk 0:00:05]}  Kd8 {[%clk 0:00:33]} 38. Nxe6+ {[%clk 0:00:05]}  Ke7 {[%clk 0:00:33]} 39. Nxf8 {[%clk 0:00:03]}  Bxc3 {[%clk 0:00:32]} 40. Nxd7 {[%clk 0:00:02]}  Kxd7 {[%clk 0:00:32]} 41. Bf2 {[%clk 0:00:01]}  Nf4 {[%clk 0:00:32]} 42. Bb5+ {[%clk 0:00:02]}  Kc7 {[%clk 0:00:32]} 43. Rc1 {[%clk 0:00:02]}  Bb2 {[%clk 0:00:31]} 44. Re1 {[%clk 0:00:02]}  Nxh3+ {[%clk 0:00:26]} 45. Kf1 {[%clk 0:00:03]}  Nxf2 {[%clk 0:00:24]} 46. Kxf2 {[%clk 0:00:03]}  Bc6 {[%clk 0:00:21]} 47. Bxc6 {[%clk 0:00:02]}  Kxc6 {[%clk 0:00:22]} 48. Re6+ {[%clk 0:00:02]}  Kxc5 {[%clk 0:00:22]} 49. Rxh6 {[%clk 0:00:03]}  g4 {[%clk 0:00:20]} 50. Ng3 {[%clk 0:00:04]}  Kd4 {[%clk 0:00:20]} 51. Nf5+ {[%clk 0:00:04]}  Kd3 {[%clk 0:00:20]} 52. Rd6+ {[%clk 0:00:03]}  Kc2 {[%clk 0:00:20]} 53. Ne3+ {[%clk 0:00:04]}  Kb1 {[%clk 0:00:20]} 54. Nc4 {[%clk 0:00:04]}  Kxa2 {[%clk 0:00:20]} 55. Rb6 {[%clk 0:00:05]}  Bd4+ {[%clk 0:00:20]} 0-1


[Site "https://www.chess.com"]

[Event "Titled Tuesday Blitz April 4 Late 2023"]
[White "Maghsoodloo, Parham"]
[Black "Beerdsen, Thomas"]
[WhiteFideId "12539929"]
[BlackFideId "1030108"]
[WhiteElo "2647"]
[BlackElo "2547"]
[Result "1-0"]
[Round "06"]
[TimeControl "180+2"]
[Date "2023.04.04"]
[WhiteClock "0:00:50"]
[BlackClock "0:00:03"]

1. d4 {[%clk 0:03:00]}  Nf6 {[%clk 0:02:59]} 2. c4 {[%clk 0:03:00]}  a6 {[%clk 0:03:00]} 3. Nc3 {[%clk 0:03:00]}  b5 {[%clk 0:03:01]} 4. e3 {[%clk 0:02:55]}  b4 {[%clk 0:03:01]} 5. Nce2 {[%clk 0:02:55]}  Bb7 {[%clk 0:02:58]} 6. Ng3 {[%clk 0:02:55]}  h5 {[%clk 0:02:58]} 7. h4 {[%clk 0:02:52]}  e6 {[%clk 0:02:56]} 8. Nf3 {[%clk 0:02:50]}  c5 {[%clk 0:02:52]} 9. Bd3 {[%clk 0:02:42]}  Qc7 {[%clk 0:02:47]} 10. b3 {[%clk 0:02:36]}  Nc6 {[%clk 0:02:44]} 11. Bb2 {[%clk 0:02:36]}  Bd6 {[%clk 0:02:37]} 12. Ne4 {[%clk 0:02:30]}  Nxe4 {[%clk 0:02:32]} 13. Bxe4 {[%clk 0:02:31]}  cxd4 {[%clk 0:02:22]} 14. exd4 {[%clk 0:02:24]}  O-O-O {[%clk 0:02:10]} 15. O-O {[%clk 0:02:20]}  f5 {[%clk 0:01:52]} 16. Bxc6 {[%clk 0:02:19]}  Qxc6 {[%clk 0:01:44]} 17. d5 {[%clk 0:02:17]}  Qc7 {[%clk 0:01:39]} 18. Ng5 {[%clk 0:01:59]}  Rhf8 {[%clk 0:01:08]} 19. Bxg7 {[%clk 0:01:39]}  Rg8 {[%clk 0:01:07]} 20. Bd4 {[%clk 0:01:39]}  Bf4 {[%clk 0:00:59]} 21. Be3 {[%clk 0:01:29]}  Kb8 {[%clk 0:00:48]} 22. Qf3 {[%clk 0:01:23]}  Be5 {[%clk 0:00:32]} 23. Rad1 {[%clk 0:01:22]}  Ka8 {[%clk 0:00:30]} 24. Kh1 {[%clk 0:01:14]}  exd5 {[%clk 0:00:26]} 25. cxd5 {[%clk 0:01:14]}  f4 {[%clk 0:00:26]} 26. Bd4 {[%clk 0:01:12]}  Rge8 {[%clk 0:00:22]} 27. Nf7 {[%clk 0:01:09]}  Bxd4 {[%clk 0:00:20]} 28. Nxd8 {[%clk 0:01:10]}  Qxd8 {[%clk 0:00:12]} 29. Rxd4 {[%clk 0:01:10]}  Qxh4+ {[%clk 0:00:13]} 30. Kg1 {[%clk 0:01:10]}  Rf8 {[%clk 0:00:10]} 31. Rxb4 {[%clk 0:01:10]}  d6 {[%clk 0:00:11]} 32. Re1 {[%clk 0:01:04]}  Qg5 {[%clk 0:00:11]} 33. Rxb7 {[%clk 0:01:01]}  Kxb7 {[%clk 0:00:11]} 34. Qc3 {[%clk 0:01:01]}  f3 {[%clk 0:00:03]} 35. g3 {[%clk 0:00:55]}  h4 {[%clk 0:00:02]} 36. Qc6+ {[%clk 0:00:52]}  Ka7 {[%clk 0:00:03]} 37. Qc7+ {[%clk 0:00:50]}  Ka8 {[%clk 0:00:03]} 38. Re7 {[%clk 0:00:50]}  Qc1+ {[%clk 0:00:03]} 39. Qxc1 {[%clk 0:00:50]} 1-0


[Site "https://www.chess.com"]

[Event "Titled Tuesday Blitz April 4 Late 2023"]
[White "Makhnev, Denis"]
[Black "Sargsyan, Shant"]
[WhiteFideId "13707647"]
[BlackFideId "13306766"]
[WhiteElo "2515"]
[BlackElo "2628"]
[Result "0-1"]
[Round "06"]
[TimeControl "180+2"]
[Date "2023.04.04"]
[WhiteClock "0:00:06"]
[BlackClock "0:00:55"]

1. d4 {[%clk 0:03:00]}  g6 {[%clk 0:02:59]} 2. Nc3 {[%clk 0:02:59]}  Nf6 {[%clk 0:02:58]} 3. e4 {[%clk 0:02:57]}  d5 {[%clk 0:02:59]} 4. e5 {[%clk 0:02:56]}  Ne4 {[%clk 0:02:59]} 5. Nxe4 {[%clk 0:02:39]}  dxe4 {[%clk 0:03:00]} 6. Be3 {[%clk 0:02:40]}  Bg7 {[%clk 0:03:00]} 7. c3 {[%clk 0:02:36]}  O-O {[%clk 0:02:58]} 8. h4 {[%clk 0:02:35]}  c5 {[%clk 0:02:58]} 9. Bc4 {[%clk 0:02:14]}  cxd4 {[%clk 0:02:57]} 10. cxd4 {[%clk 0:02:15]}  Nc6 {[%clk 0:02:57]} 11. h5 {[%clk 0:02:14]}  Qa5+ {[%clk 0:02:54]} 12. Kf1 {[%clk 0:02:14]}  Rd8 {[%clk 0:02:43]} 13. hxg6 {[%clk 0:02:08]}  hxg6 {[%clk 0:02:44]} 14. Qb3 {[%clk 0:02:08]}  e6 {[%clk 0:02:37]} 15. Ne2 {[%clk 0:02:09]}  b6 {[%clk 0:02:10]} 16. Bg5 {[%clk 0:01:53]}  Rxd4 {[%clk 0:01:59]} 17. Nxd4 {[%clk 0:01:19]}  Nxd4 {[%clk 0:02:00]} 18. Qh3 {[%clk 0:01:19]}  Qxe5 {[%clk 0:01:47]} 19. Qh7+ {[%clk 0:00:45]}  Kf8 {[%clk 0:01:46]} 20. Bh6 {[%clk 0:00:46]}  Bxh6 {[%clk 0:01:41]} 21. Qxh6+ {[%clk 0:00:47]}  Ke7 {[%clk 0:01:42]} 22. Rd1 {[%clk 0:00:07]}  Bb7 {[%clk 0:01:24]} 23. Qe3 {[%clk 0:00:05]}  Rd8 {[%clk 0:01:17]} 24. Qa3+ {[%clk 0:00:04]}  Kf6 {[%clk 0:01:15]} 25. Qxa7 {[%clk 0:00:04]}  e3 {[%clk 0:01:07]} 26. fxe3 {[%clk 0:00:03]}  Qf5+ {[%clk 0:00:54]} 27. Kg1 {[%clk 0:00:03]}  Nf3+ {[%clk 0:00:52]} 28. gxf3 {[%clk 0:00:02]}  Rxd1+ {[%clk 0:00:52]} 29. Bf1 {[%clk 0:00:02]}  Rxf1+ {[%clk 0:00:52]} 30. Kxf1 {[%clk 0:00:02]}  Qxf3+ {[%clk 0:00:53]} 31. Ke1 {[%clk 0:00:03]}  Qxh1+ {[%clk 0:00:54]} 32. Kd2 {[%clk 0:00:04]}  Qd5+ {[%clk 0:00:54]} 33. Kc3 {[%clk 0:00:04]}  Qa5+ {[%clk 0:00:53]} 34. Qxa5 {[%clk 0:00:04]}  bxa5 {[%clk 0:00:53]} 35. Kc4 {[%clk 0:00:04]}  g5 {[%clk 0:00:54]} 36. Kb5 {[%clk 0:00:04]}  g4 {[%clk 0:00:54]} 37. Kxa5 {[%clk 0:00:05]}  g3 {[%clk 0:00:55]} 38. Kb6 {[%clk 0:00:06]}  g2 {[%clk 0:00:55]} 0-1


[Site "https://www.chess.com"]

[Event "Titled Tuesday Blitz April 4 Late 2023"]
[White "Szpar, Milosz"]
[Black "Chigaev, Maksim"]
[WhiteFideId "1184989"]
[BlackFideId "4108116"]
[WhiteElo "2436"]
[BlackElo "2547"]
[Result "0-1"]
[Round "06"]
[TimeControl "180+2"]
[Date "2023.04.04"]
[WhiteClock "0:00:06"]
[BlackClock "0:00:04"]

1. e4 {[%clk 0:03:00]}  c5 {[%clk 0:03:00]} 2. Nf3 {[%clk 0:02:59]}  Nc6 {[%clk 0:03:00]} 3. Bb5 {[%clk 0:02:56]}  e6 {[%clk 0:03:00]} 4. Bxc6 {[%clk 0:02:53]}  bxc6 {[%clk 0:03:01]} 5. d3 {[%clk 0:02:49]}  Qc7 {[%clk 0:03:02]} 6. O-O {[%clk 0:02:45]}  Ne7 {[%clk 0:03:01]} 7. c4 {[%clk 0:02:41]}  Ng6 {[%clk 0:02:55]} 8. Nc3 {[%clk 0:02:39]}  e5 {[%clk 0:02:54]} 9. a3 {[%clk 0:02:28]}  Be7 {[%clk 0:02:51]} 10. Rb1 {[%clk 0:02:28]}  a5 {[%clk 0:02:49]} 11. Ne1 {[%clk 0:02:18]}  O-O {[%clk 0:02:45]} 12. Nc2 {[%clk 0:02:18]}  f5 {[%clk 0:02:39]} 13. exf5 {[%clk 0:02:18]}  Rxf5 {[%clk 0:02:38]} 14. Ne3 {[%clk 0:02:02]}  Rf8 {[%clk 0:02:37]} 15. Ne4 {[%clk 0:01:41]}  d6 {[%clk 0:02:29]} 16. Bd2 {[%clk 0:01:35]}  a4 {[%clk 0:02:12]} 17. b4 {[%clk 0:01:31]}  axb3 {[%clk 0:02:10]} 18. Qxb3 {[%clk 0:01:28]}  Nf4 {[%clk 0:02:09]} 19. Rb2 {[%clk 0:01:16]}  Ne2+ {[%clk 0:01:50]} 20. Kh1 {[%clk 0:01:16]}  Nd4 {[%clk 0:01:51]} 21. Qa2 {[%clk 0:01:08]}  Ne6 {[%clk 0:00:59]} 22. Rfb1 {[%clk 0:01:02]}  Nf4 {[%clk 0:00:58]} 23. Rb3 {[%clk 0:00:54]}  Qa7 {[%clk 0:00:58]} 24. Be1 {[%clk 0:00:52]}  Ne6 {[%clk 0:00:56]} 25. Bc3 {[%clk 0:00:40]}  h6 {[%clk 0:00:52]} 26. f3 {[%clk 0:00:41]}  Kh7 {[%clk 0:00:50]} 27. Qf2 {[%clk 0:00:41]}  Nd4 {[%clk 0:00:48]} 28. Bxd4 {[%clk 0:00:39]}  cxd4 {[%clk 0:00:47]} 29. Nc2 {[%clk 0:00:29]}  c5 {[%clk 0:00:37]} 30. h3 {[%clk 0:00:23]}  Qc7 {[%clk 0:00:28]} 31. Qg3 {[%clk 0:00:21]}  Ra7 {[%clk 0:00:27]} 32. a4 {[%clk 0:00:15]}  Rxa4 {[%clk 0:00:20]} 33. Na3 {[%clk 0:00:16]}  Qd8 {[%clk 0:00:16]} 34. Nb5 {[%clk 0:00:16]}  Bf5 {[%clk 0:00:14]} 35. Re1 {[%clk 0:00:13]}  Bh4 {[%clk 0:00:13]} 36. Re2 {[%clk 0:00:03]}  Bxg3 {[%clk 0:00:09]} 37. Nxg3 {[%clk 0:00:04]}  Bg6 {[%clk 0:00:08]} 38. Kh2 {[%clk 0:00:04]}  Rf7 {[%clk 0:00:07]} 39. Ne4 {[%clk 0:00:05]}  Bxe4 {[%clk 0:00:07]} 40. dxe4 {[%clk 0:00:06]}  Rb7 {[%clk 0:00:06]} 41. Rc2 {[%clk 0:00:05]}  Qd7 {[%clk 0:00:04]} 42. Rd3 {[%clk 0:00:06]}  Rxc4 {[%clk 0:00:04]} 43. Rxc4 {[%clk 0:00:07]}  Qxb5 {[%clk 0:00:04]} 44. Rb3 {[%clk 0:00:06]}  Qxb3 {[%clk 0:00:04]} 0-1


[Site "https://www.chess.com"]

[Event "Titled Tuesday Blitz April 4 Late 2023"]
[White "Andreikin, Dmitry"]
[Black "Rustemov, Alexander"]
[WhiteFideId "4158814"]
[BlackFideId "4119002"]
[WhiteElo "2736"]
[BlackElo "2852"]
[Result "1-0"]
[Round "06"]
[TimeControl "180+2"]
[Date "2023.04.04"]
[WhiteClock "0:00:16"]
[BlackClock "0:00:03"]

1. d4 {[%clk 0:03:00]}  d5 {[%clk 0:03:00]} 2. c4 {[%clk 0:03:01]}  c6 {[%clk 0:03:01]} 3. Nf3 {[%clk 0:03:01]}  Nf6 {[%clk 0:03:01]} 4. Qc2 {[%clk 0:02:58]}  dxc4 {[%clk 0:03:01]} 5. e4 {[%clk 0:02:58]}  b5 {[%clk 0:02:59]} 6. b3 {[%clk 0:02:58]}  cxb3 {[%clk 0:02:58]} 7. axb3 {[%clk 0:02:58]}  e6 {[%clk 0:02:57]} 8. Bd3 {[%clk 0:02:58]}  Be7 {[%clk 0:02:43]} 9. O-O {[%clk 0:02:58]}  Bb7 {[%clk 0:02:42]} 10. Nc3 {[%clk 0:02:40]}  Na6 {[%clk 0:02:35]} 11. Na2 {[%clk 0:02:35]}  h6 {[%clk 0:02:31]} 12. Qe2 {[%clk 0:02:33]}  Nb4 {[%clk 0:02:15]} 13. Nxb4 {[%clk 0:02:31]}  Bxb4 {[%clk 0:02:16]} 14. Bxb5 {[%clk 0:02:27]}  cxb5 {[%clk 0:01:50]} 15. Qxb5+ {[%clk 0:02:28]}  Qd7 {[%clk 0:01:51]} 16. Qxb4 {[%clk 0:02:28]}  Bxe4 {[%clk 0:01:51]} 17. Ne5 {[%clk 0:02:24]}  Qb7 {[%clk 0:01:35]} 18. Ba3 {[%clk 0:01:30]}  Qxb4 {[%clk 0:01:32]} 19. Bxb4 {[%clk 0:01:29]}  Nd7 {[%clk 0:01:21]} 20. Nc4 {[%clk 0:01:22]}  Bd5 {[%clk 0:01:14]} 21. Rfc1 {[%clk 0:01:17]}  Bxc4 {[%clk 0:01:09]} 22. Rxc4 {[%clk 0:01:10]}  Nf6 {[%clk 0:00:47]} 23. Rc7 {[%clk 0:01:07]}  Nd5 {[%clk 0:00:45]} 24. Rcxa7 {[%clk 0:01:07]}  Rc8 {[%clk 0:00:40]} 25. Bc5 {[%clk 0:01:06]}  h5 {[%clk 0:00:28]} 26. g3 {[%clk 0:01:04]}  Rh6 {[%clk 0:00:29]} 27. b4 {[%clk 0:00:57]}  Rb8 {[%clk 0:00:21]} 28. Ra8 {[%clk 0:00:52]}  Rxa8 {[%clk 0:00:20]} 29. Rxa8+ {[%clk 0:00:53]}  Kd7 {[%clk 0:00:21]} 30. Ra7+ {[%clk 0:00:53]}  Kc6 {[%clk 0:00:18]} 31. Rxf7 {[%clk 0:00:53]}  g5 {[%clk 0:00:19]} 32. h3 {[%clk 0:00:49]}  Kb5 {[%clk 0:00:18]} 33. Rg7 {[%clk 0:00:47]}  h4 {[%clk 0:00:17]} 34. Kg2 {[%clk 0:00:36]}  hxg3 {[%clk 0:00:17]} 35. fxg3 {[%clk 0:00:36]}  g4 {[%clk 0:00:16]} 36. hxg4 {[%clk 0:00:35]}  Kc4 {[%clk 0:00:16]} 37. g5 {[%clk 0:00:34]}  Rh8 {[%clk 0:00:16]} 38. Kf3 {[%clk 0:00:32]}  Kd3 {[%clk 0:00:16]} 39. b5 {[%clk 0:00:29]}  Rb8 {[%clk 0:00:15]} 40. b6 {[%clk 0:00:25]}  Kc4 {[%clk 0:00:11]} 41. g6 {[%clk 0:00:24]}  e5 {[%clk 0:00:11]} 42. Bd6 {[%clk 0:00:17]}  Rxb6 {[%clk 0:00:09]} 43. dxe5 {[%clk 0:00:18]}  Rb3+ {[%clk 0:00:06]} 44. Kg4 {[%clk 0:00:17]}  Ne3+ {[%clk 0:00:06]} 45. Kf4 {[%clk 0:00:18]}  Kd5 {[%clk 0:00:06]} 46. Rc7 {[%clk 0:00:14]}  Ng2+ {[%clk 0:00:04]} 47. Kg4 {[%clk 0:00:15]}  Ne3+ {[%clk 0:00:04]} 48. Kg5 {[%clk 0:00:15]}  Nf1 {[%clk 0:00:04]} 49. g4 {[%clk 0:00:15]}  Rg3 {[%clk 0:00:02]} 50. g7 {[%clk 0:00:16]}  Ne3 {[%clk 0:00:03]} 51. g8=Q+ {[%clk 0:00:16]} 1-0


[Site "https://www.chess.com"]